fUSD/lending_fUSD_20250503
["ID","MTS","AMOUNT","RATE_DAILY","PERIOD"]
[359673556,1746240643950,-450.0,0.00019859,2]
[359673557,1746240643960,-450.0,0.00019859,2]
[359673558,1746240643970,-450.0,0.00019859,2]
[359673559,1746240643980,-450.0,0.00019859,2]
[359673560,1746240643991,-450.0,0.00019859,2]
[359673561,1746240644000,-450.0,0.00019859,2]
[359673562,1746240644010,-450.0,0.00019859,2]
[359673563,1746240644019,-450.0,0.00019859,2]
[359673564,1746240644030,-450.0,0.00019859,2]
[359673565,1746240644040,-450.0,0.00019859,2]
[359673566,1746240644050,-450.0,0.00019859,2]
[359673567,1746240644060,-450.0,0.00019859,2]
[359673568,1746240644071,-450.0,0.00019859,2]
[359673569,1746240644081,-312.08845555,0.00019859,2]
[359673570,1746240644091,-450.0,0.00019859,2]
[359673571,1746240644103,-450.0,0.00019859,2]
[359673572,1746240644114,-450.0,0.00019859,2]
[359673573,1746240644125,-6072.71,0.00019859,2]
[359673574,1746240644135,-807.43,0.00019859,2]
[359673575,1746240644145,-450.0,0.00019859,2]
[359673576,1746240644156,-953.77,0.00019859,2]
[359673577,1746240644167,-450.0,0.00019859,2]
[359673578,1746240644177,-450.0,0.00019859,2]
[359673579,1746240644187,-497.23,0.00019859,2]
[359673580,1746240644197,-467.21,0.00019859,2]
[359673581,1746240644207,-450.0,0.00019859,2]
[359673582,1746240644217,-450.0,0.00019859,2]
[359673583,1746240644227,-450.0,0.00019859,2]
[359673584,1746240644237,-450.0,0.00019859,2]
[359673585,1746240644247,-664.35,0.00019859,2]
[359673586,1746240644257,-450.0,0.00019859,2]
[359673587,1746240644266,-450.0,0.00019859,2]
[359673588,1746240644498,-450.0,0.00019859,2]
[359673589,1746240644509,-5444.26,0.00019859,2]
[359673590,1746240644519,-450.0,0.00019859,2]
[359673591,1746240644528,-450.0,0.00019859,2]
[359673592,1746240644538,-418.70387019,0.00019859,2]
[359673593,1746240644547,-450.0,0.00019859,2]
[359673594,1746240644556,-450.0,0.00019859,2]
[359673595,1746240644566,-450.0,0.00019859,2]
[359673596,1746240644575,-450.0,0.00019859,2]
[359673597,1746240644584,-450.0,0.00019859,2]
[359673598,1746240644594,-450.0,0.00019859,2]
[359673599,1746240644604,-464.37,0.00019859,2]
[359673600,1746240644614,-450.0,0.00019859,2]
[359673601,1746240644625,-450.0,0.00019859,2]
[359673602,1746240644635,-450.0,0.00019859,2]
[359673603,1746240644644,-450.0,0.00019859,2]
[359673604,1746240644653,-450.0,0.00019859,2]
[359673605,1746240644662,-450.0,0.00019859,2]
[359673606,1746240644671,-687.68,0.00019859,2]
[359673607,1746240644680,-450.0,0.00019859,2]
[359673608,1746240644690,-450.0,0.00019859,2]
[359673609,1746240644699,-450.0,0.00019859,2]
[359673610,1746240644709,-450.0,0.00019859,2]
[359673611,1746240644718,-450.0,0.00019859,2]
[359673612,1746240644727,-2191.11,0.00019859,2]
[359673613,1746240644736,-450.0,0.00019859,2]
[359673614,1746240644746,-112968.74,0.00019859,2]
[359673615,1746240644755,-450.0,0.00019859,2]
[359673616,1746240644765,-450.0,0.00019859,2]
[359673617,1746240644774,-450.0,0.00019859,2]
[359673618,1746240644784,-522.06,0.00019859,2]
[359673619,1746240644794,-450.0,0.00019859,2]
[359673620,1746240644804,-500.43,0.00019859,2]
[359673621,1746240644813,-450.0,0.00019859,2]
[359673622,1746240644823,-450.0,0.00019859,2]
[359673623,1746240644832,-450.0,0.00019859,2]
[359673624,1746240644842,-450.0,0.00019859,2]
[359673625,1746240644852,-450.0,0.00019859,2]
[359673626,1746240644861,-536.08767055,0.00019859,2]
[359673627,1746240644871,-450.0,0.00019859,2]
[359673628,1746240644881,-1141.42,0.00019859,2]
[359673629,1746240644891,-450.0,0.00019859,2]
[359673630,1746240644901,-450.0,0.00019859,2]
[359673631,1746240644910,-317.40863215,0.00019859,2]
[359673632,1746240644919,-486.12125161,0.00019859,2]
[359673633,1746240644929,-1342.54,0.00019859,2]
[359673634,1746240644938,-450.0,0.00019859,2]
[359673635,1746240644952,-395.39490778,0.00019859,2]
[359673636,1746240644961,-999.0,0.00019859,2]
[359673637,1746240644970,-450.0,0.00019859,2]
[359673638,1746240644979,-450.0,0.00019859,2]
[359673639,1746240644990,-450.0,0.00019859,2]
[359673640,1746240645000,-642.05,0.00019859,2]
[359673641,1746240645009,-478.49,0.00019859,2]
[359673642,1746240645019,-450.0,0.00019859,2]
[359673643,1746240645029,-1727.11,0.00019859,2]
[359673644,1746240645039,-450.0,0.00019859,2]
[359673645,1746240645048,-450.0,0.00019859,2]
[359673646,1746240645058,-1209.63,0.00019859,2]
[359673647,1746240645067,-450.0,0.00019859,2]
[359673648,1746240645077,-450.0,0.00019859,2]
[359673649,1746240645086,-547.16,0.00019859,2]
[359673650,1746240645095,-450.0,0.00019859,2]
[359673651,1746240645105,-450.0,0.00019859,2]
[359673652,1746240645114,-450.0,0.00019859,2]
[359673653,1746240645124,-450.0,0.00019859,2]
[359673654,1746240645133,-450.0,0.00019859,2]
[359673655,1746240645143,-519.34,0.00019859,2]
[359673656,1746240645152,-450.0,0.00019859,2]
[359673657,1746240645161,-450.0,0.00019859,2]
[359673658,1746240645171,-450.0,0.00019859,2]
[359673659,1746240645180,-450.0,0.00019859,2]
[359673660,1746240645192,-450.0,0.00019859,2]
[359673661,1746240645201,-497.81,0.00019859,2]
[359673662,1746240645210,-450.0,0.00019859,2]
[359673663,1746240645220,-1021.26,0.00019859,2]
[359673664,1746240645229,-4554.51,0.00019859,2]
[359673665,1746240645241,-504.8,0.00019859,2]
[359673666,1746240645250,-450.0,0.00019859,2]
[359673667,1746240645260,-815.26,0.00019859,2]
[359673668,1746240645269,-1030.54,0.00019859,2]
[359673669,1746240645279,-1460.44,0.00019859,2]
[359673670,1746240645288,-450.0,0.00019859,2]
[359673671,1746240645297,-293.557934,0.00019859,2]
[359673672,1746240645312,-3126.99,0.00019859,2]
[359673673,1746240645321,-1367.73,0.00019859,2]
[359673674,1746240645330,-526.34,0.00019859,2]
[359673675,1746240645340,-503.8,0.00019859,2]
[359673676,1746240645349,-450.0,0.00019859,2]
[359673677,1746240645359,-450.0,0.00019859,2]
[359673678,1746240645368,-514.54,0.00019859,2]
[359673679,1746240645378,-450.0,0.00019859,2]
[359673680,1746240645387,-497.86,0.00019859,2]
[359673681,1746240645397,-564.72,0.00019859,2]
[359673682,1746240645406,-450.0,0.00019859,2]
[359673683,1746240645416,-450.0,0.00019859,2]
[359673684,1746240645425,-450.0,0.00019859,2]
[359673685,1746240645434,-2856.15,0.00019859,2]
[359673686,1746240645443,-450.0,0.00019859,2]
[359673687,1746240645453,-450.0,0.00019859,2]
[359673688,1746240645462,-576.98,0.00019859,2]
[359673689,1746240645471,-450.0,0.00019859,2]
[359673690,1746240645481,-450.0,0.00019859,2]
[359673691,1746240645492,-450.0,0.00019859,2]
[359673692,1746240645501,-450.0,0.00019859,2]
[359673693,1746240645510,-1481.52,0.00019859,2]
[359673694,1746240645520,-450.0,0.00019859,2]
[359673695,1746240645530,-354.35488265,0.00019859,2]
[359673696,1746240645539,-450.0,0.00019859,2]
[359673698,1746240645549,-795.4,0.00019859,2]
[359673700,1746240645559,-450.0,0.00019859,2]
[359673702,1746240645568,-758.6,0.00019859,2]
[359673704,1746240645578,-450.0,0.0001986,2]
[359673706,1746240645587,-450.0,0.0001986,2]
[359673708,1746240645596,-483.82,0.0001986,2]
[359673710,1746240645606,-450.0,0.0001986,2]
[359673712,1746240645615,-450.0,0.0001986,2]
[359673714,1746240645625,-450.0,0.0001986,2]
[359673716,1746240645634,-450.0,0.0001986,2]
[359673718,1746240645644,-450.0,0.0001986,2]
[359673719,1746240645653,-450.0,0.0001986,2]
[359673721,1746240645663,-450.0,0.0001986,2]
[359673723,1746240645672,-587.79,0.0001986,2]
[359673725,1746240645682,-450.0,0.0001986,2]
[359673727,1746240645691,-450.0,0.0001986,2]
[359673729,1746240645701,-450.0,0.0001986,2]
[359673731,1746240645710,-450.0,0.0001986,2]
[359673733,1746240645720,-450.0,0.0001986,2]
[359673734,1746240645730,-450.0,0.0001986,2]
[359673735,1746240645739,-459.25,0.0001986,2]
[359673736,1746240645749,-450.0,0.0001986,2]
[359673737,1746240645759,-450.0,0.0001986,2]
[359673738,1746240645769,-450.0,0.0001986,2]
[359673739,1746240645780,-450.0,0.0001986,2]
[359673740,1746240645790,-450.0,0.0001986,2]
[359673741,1746240645801,-450.0,0.0001986,2]
[359673742,1746240645811,-450.0,0.0001986,2]
[359673743,1746240645821,-450.0,0.0001986,2]
[359673744,1746240645831,-450.0,0.0001986,2]
[359673745,1746240645841,-515.31,0.0001986,2]
[359673746,1746240645851,-594.8,0.0001986,2]
[359673747,1746240645860,-450.0,0.0001986,2]
[359673748,1746240645874,-477.38,0.0001986,2]
[359673749,1746240645883,-450.0,0.0001986,2]
[359673750,1746240645894,-524.46,0.0001986,2]
[359673751,1746240645903,-486.95,0.0001986,2]
[359673752,1746240645913,-450.0,0.0001986,2]
[359673753,1746240645923,-450.0,0.0001986,2]
[359673754,1746240645934,-450.0,0.0001986,2]
[359673755,1746240645945,-450.0,0.0001986,2]
[359673756,1746240645955,-450.0,0.0001986,2]
[359673757,1746240645965,-450.0,0.0001986,2]
[359673758,1746240645975,-450.0,0.0001986,2]
[359673759,1746240645985,-450.0,0.0001986,2]
[359673760,1746240645994,-450.0,0.0001986,2]
[359673761,1746240646006,-450.0,0.0001986,2]
[359673762,1746240646015,-450.0,0.0001986,2]
[359673763,1746240646025,-450.0,0.0001986,2]
[359673764,1746240646035,-450.0,0.0001986,2]
[359673765,1746240646044,-469.51628982,0.0001986,2]
[359673766,1746240646054,-554.43,0.0001986,2]
[359673767,1746240646064,-450.0,0.0001986,2]
[359673768,1746240646074,-450.0,0.0001986,2]
[359673769,1746240646084,-450.0,0.0001986,2]
[359673770,1746240646093,-1032.79,0.0001986,2]
[359673771,1746240646103,-450.0,0.0001986,2]
[359673772,1746240646112,-450.0,0.0001986,2]
[359673773,1746240646121,-545.5843728,0.0001986,2]
[359673774,1746240646131,-450.0,0.0001986,2]
[359673775,1746240646141,-450.0,0.0001986,2]
[359673776,1746240646150,-775.05,0.0001986,2]
[359673777,1746240646160,-450.0,0.0001986,2]
[359673778,1746240646169,-450.0,0.0001986,2]
[359673779,1746240646178,-450.0,0.0001986,2]
[359673780,1746240646188,-450.0,0.0001986,2]
[359673781,1746240646197,-552.33,0.0001986,2]
[359673782,1746240646207,-1379.79,0.0001986,2]
[359673783,1746240646216,-543.97,0.0001986,2]
[359673784,1746240646225,-961.02,0.0001986,2]
[359673785,1746240646235,-526.03,0.0001986,2]
[359673786,1746240646244,-450.0,0.0001986,2]
[359673787,1746240646253,-684.13,0.0001986,2]
[359673788,1746240646262,-450.0,0.0001986,2]
[359673789,1746240646271,-450.0,0.0001986,2]
[359673790,1746240646280,-450.0,0.0001986,2]
[359673791,1746240646289,-450.0,0.0001986,2]
[359673792,1746240646299,-450.0,0.0001986,2]
[359673793,1746240646308,-483.78,0.0001986,2]
[359673794,1746240646317,-450.0,0.0001986,2]
[359673795,1746240646326,-523.86,0.0001986,2]
[359673796,1746240646335,-450.0,0.0001986,2]
[359673797,1746240646345,-450.0,0.0001986,2]
[359673798,1746240646354,-450.0,0.0001986,2]
[359673799,1746240646363,-761.28,0.0001986,2]
[359673800,1746240646372,-300.0,0.0001986,2]
[359673801,1746240646381,-196.3745295,0.0001986,2]
[359673802,1746240646391,-450.0,0.0001986,2]
[359673803,1746240646400,-467.01,0.0001986,2]
[359673804,1746240646409,-450.0,0.0001986,2]
[359673805,1746240646419,-450.0,0.0001986,2]
[359673806,1746240646429,-450.0,0.0001986,2]
[359673807,1746240646439,-450.0,0.0001986,2]
[359673808,1746240646448,-450.0,0.0001986,2]
[359673809,1746240646458,-450.0,0.0001986,2]
[359673810,1746240646467,-561.68,0.0001986,2]
[359673811,1746240646476,-673.59,0.0001986,2]
[359673812,1746240646485,-1652.12,0.0001986,2]
[359673813,1746240646494,-450.0,0.0001986,2]
[359673814,1746240646504,-450.0,0.0001986,2]
[359673815,1746240646513,-450.0,0.0001986,2]
[359673816,1746240646522,-694.44,0.0001986,2]
[359673817,1746240646531,-561.79,0.0001986,2]
[359673818,1746240646540,-173.39625193,0.0001986,2]
[359673819,1746240646550,-2555.85,0.0001986,2]
[359673820,1746240646559,-450.0,0.0001986,2]
[359673821,1746240646568,-712.99,0.0001986,2]
[359673822,1746240646578,-450.0,0.0001986,2]
[359673823,1746240646589,-450.0,0.0001986,2]
[359673824,1746240646599,-479.37,0.0001986,2]
[359673825,1746240646608,-450.0,0.0001986,2]
[359673826,1746240646618,-450.0,0.0001986,2]
[359673827,1746240646629,-450.0,0.0001986,2]
[359673828,1746240646638,-450.0,0.0001986,2]
[359673829,1746240646647,-450.0,0.0001986,2]
[359673830,1746240646657,-637.14,0.0001986,2]
[359673831,1746240646666,-755.25,0.0001986,2]
[359673832,1746240646676,-997.52,0.0001986,2]
[359673833,1746240646685,-467.31,0.0001986,2]
[359673834,1746240646695,-450.0,0.0001986,2]
[359673835,1746240646704,-450.0,0.0001986,2]
[359673836,1746240646714,-1036.18,0.0001986,2]
[359673837,1746240646724,-1122.05,0.0001986,2]
[359673838,1746240646734,-450.0,0.0001986,2]
[359673839,1746240646743,-450.0,0.0001986,2]
[359673840,1746240646753,-323.33641145,0.0001986,2]
[359673841,1746240646763,-450.0,0.0001986,2]
[359673842,1746240646773,-450.0,0.0001986,2]
[359673843,1746240646782,-450.0,0.0001986,2]
[359673844,1746240646791,-450.0,0.0001986,2]
[359673845,1746240646801,-450.0,0.0001986,2]
[359673846,1746240646870,-450.0,0.0001986,2]
[359673847,1746240646879,-953.51,0.0001986,2]
[359673848,1746240646888,-450.0,0.0001986,2]
[359673849,1746240646898,-450.0,0.0001986,2]
[359673850,1746240646907,-1373.22,0.0001986,2]
[359673851,1746240646916,-356.92621628,0.0001986,2]
[359673852,1746240646925,-477.01,0.0001986,2]
[359673853,1746240646935,-373.02246416,0.0001986,2]
[359673854,1746240646947,-579.1,0.0001986,2]
[359673855,1746240646957,-494.63,0.0001986,2]
[359673856,1746240646967,-1579.43,0.0001986,2]
[359673857,1746240646977,-450.0,0.0001986,2]
[359673858,1746240646987,-651.72,0.0001986,2]
[359673859,1746240646997,-606.11,0.0001986,2]
[359673860,1746240647007,-450.0,0.0001986,2]
[359673861,1746240647019,-450.0,0.0001986,2]
[359673862,1746240647030,-3835.81,0.0001986,2]
[359673863,1746240647040,-450.0,0.0001986,2]
[359673864,1746240647050,-450.0,0.0001986,2]
[359673865,1746240647060,-450.0,0.0001986,2]
[359673866,1746240647072,-936.69,0.0001986,2]
[359673867,1746240647084,-462.95,0.0001986,2]
[359673868,1746240647092,-4513.8,0.0001986,2]
[359673869,1746240647102,-328.83609897,0.0001986,2]
[359673870,1746240647112,-4104.92,0.0001986,2]
[359673871,1746240647122,-450.0,0.0001986,2]
[359673872,1746240647131,-450.0,0.0001986,2]
[359673873,1746240647140,-1042.01,0.0001986,2]
[359673874,1746240647149,-450.0,0.0001986,2]
[359673875,1746240647158,-905.46,0.0001986,2]
[359673876,1746240647167,-450.0,0.0001986,2]
[359673877,1746240647176,-4606.16,0.0001986,2]
[359673878,1746240647185,-714.46,0.0001986,2]
[359673879,1746240647194,-450.0,0.0001986,2]
[359673880,1746240647203,-2144.86,0.0001986,2]
[359673881,1746240647212,-450.0,0.0001986,2]
[359673882,1746240647222,-81628.11,0.0001986,2]
[359673883,1746240647233,-450.0,0.0001986,2]
[359673884,1746240647242,-450.0,0.0001986,2]
[359673885,1746240647251,-4831.13,0.0001986,2]
[359673886,1746240647261,-536.32,0.0001986,2]
[359673887,1746240647270,-262.48,0.0001986,2]
[359673888,1746240647279,-17678.85,0.0001986,2]
[359673889,1746240647288,-588.96,0.0001986,2]
[359673890,1746240647297,-1747.83,0.0001986,2]
[359673891,1746240647306,-14869.86,0.0001986,2]
[359673892,1746240647315,-219.49622307,0.00019865,2]
[359673893,1746240647324,-12500.0,0.00019865,2]
[359673894,1746240647333,-150.0,0.00019868,2]
[359673895,1746240647342,-500.0,0.00019868,2]
[359673896,1746240647352,-500.0,0.00019868,2]
[359673897,1746240647361,-500.0,0.00019868,2]
[359673898,1746240647370,-222.40857925,0.00019868,2]
[359673899,1746240647379,-500.0,0.00019868,2]
[359673900,1746240647389,-500.0,0.00019868,2]
[359673901,1746240647398,-500.0,0.00019868,2]
[359673902,1746240647407,-500.0,0.00019868,2]
[359673903,1746240647417,-500.0,0.00019868,2]
[359673904,1746240647427,-641.08241789,0.00019868,2]
[359673905,1746240647436,-500.0,0.00019868,2]
[359673906,1746240647446,-501.88937331,0.00019873,2]
[359673907,1746240647455,-500.0,0.00019873,2]
[359673908,1746240647464,-503.83950627,0.00019873,2]
[359673909,1746240647474,-500.0,0.00019873,2]
[359673910,1746240647486,-500.0,0.00019873,2]
[359673911,1746240647496,-500.0,0.00019873,2]
[359673912,1746240647506,-500.0,0.00019873,2]
[359673913,1746240647516,-500.0,0.00019873,2]
[359673914,1746240647526,-500.0,0.00019873,2]
[359673915,1746240647536,-402.99682489,0.00019873,2]
[359673916,1746240647545,-500.0,0.00019873,2]
[359673917,1746240647554,-500.0,0.00019873,2]
[359673918,1746240647564,-12500.0,0.00019874,2]
[359673919,1746240647573,-12500.0,0.00019874,2]
[359673920,1746240647582,-2897.19243385,0.00019878,2]
[359673921,1746240647591,-12500.0,0.00019882,2]
[359673922,1746240647601,-12500.0,0.00019882,2]
[359673923,1746240647609,-235.05660728,0.00019886,2]
[359673924,1746240647618,-166.2109942,0.00019886,2]
[359673925,1746240647627,-235.05660728,0.00019888,2]
[359673926,1746240647638,-235.05660728,0.00019891,2]
[359673927,1746240647648,-12500.0,0.00019891,2]
[359673928,1746240647657,-12500.0,0.00019891,2]
[359673929,1746240647667,-235.05660728,0.00019893,2]
[359673930,1746240647677,-235.05660728,0.00019895,2]
[359673931,1746240647687,-235.05660728,0.00019898,2]
[359673932,1746240647697,-21840.7126,0.000199,2]
[359673933,1746240647708,-235.05660728,0.000199,2]
[359673934,1746240647717,-166.2109942,0.000199,2]
[359673935,1746240647726,-12500.0,0.000199,2]
[359673936,1746240647735,-12500.0,0.000199,2]
[359673937,1746240647744,-2693.33612751,0.000199,2]
[359673938,1746240647754,-2720.8961395,0.000199,2]
[359673939,1746240647764,-2780.94450003,0.000199,2]
[359673940,1746240647774,-219.49622307,0.000199,2]
[359673941,1746240647783,-49213.68569732,0.000199,2]
[359673942,1746240647792,-200.49647256,0.000199,2]
[359673943,1746240647802,-1835.0,0.000199,2]
[359673944,1746240647812,-1853.77154438,0.00019908,2]
[359673945,1746240647821,-500.0,0.00019918,2]
[359673946,1746240647831,-4093.995,0.00019939,2]
[359673947,1746240647840,-323.067,0.00019948,2]
[359673948,1746240647849,-500.0,0.00019971,2]
[359673949,1746240647859,-228.28560537,0.00019971,2]
[359673950,1746240647869,-24428.0,0.00019973,2]
[359673951,1746240647879,-544.89074326,0.00019973,2]
[359673952,1746240647888,-160.45164529,0.00019973,2]
[359673953,1746240647897,-506.33875235,0.00019973,2]
[359673954,1746240647907,-502.58925245,0.00019973,2]
[359673955,1746240647916,-500.0,0.00019973,2]
[359673956,1746240647926,-532.23391832,0.00019973,2]
[359673957,1746240647935,-500.0,0.00019973,2]
[359673958,1746240647947,-500.0,0.00019973,2]
[359673959,1746240647958,-959.0,0.00019973,2]
[359673960,1746240647968,-500.0,0.00019973,2]
[359673961,1746240647978,-160.20238278,0.00019973,2]
[359673962,1746240647990,-505.26039964,0.00019973,2]
[359673963,1746240647999,-500.0,0.00019973,2]
[359673964,1746240648009,-500.0,0.00019973,2]
[359673965,1746240648020,-500.0,0.00019973,2]
[359673966,1746240648029,-303.17184781,0.00019973,2]
[359673967,1746240648038,-500.0,0.00019973,2]
[359673968,1746240648048,-501.21994559,0.00019973,2]
[359673969,1746240648058,-501.15741321,0.00019973,2]
[359673970,1746240648067,-517.26161729,0.00019973,2]
[359673971,1746240648076,-243.83231524,0.00019973,2]
[359673972,1746240648085,-500.8951883,0.00019973,2]
[359673973,1746240648095,-152.63342926,0.00019973,2]
[359673974,1746240648104,-539.24803438,0.00019973,2]
[359673975,1746240648113,-502.06385384,0.00019973,2]
[359673976,1746240648122,-500.0,0.00019973,2]
[359673977,1746240648132,-90124.4518048,0.00019986,2]
[359673978,1746240648141,-107145.4580409,0.00019986,2]
[359673979,1746240648151,-7589.1386605,0.00019986,2]
[359673980,1746240648160,-14243.7234277,0.00019986,2]
[359673981,1746240648170,-47872.7139862,0.00019986,2]
[359673982,1746240648179,-1077.03046632,0.0001999,2]
[359673983,1746240648188,-1077.03046632,0.0001999,2]
[359673984,1746240648197,-500.0,0.00019999,2]
[359673985,1746240648206,-679.71892541,0.00019999,2]
[359673986,1746240648215,-500.0,0.00019999,2]
[359673987,1746240648225,-300.0,0.00019999,2]
[359673988,1746240648235,-300.0,0.00019999,2]
[359673989,1746240648244,-312.85418671,0.00019999,2]
[359673990,1746240648254,-1001.1282,0.00019999,2]
[359673991,1746240648263,-267.56632987,0.0002,2]
[359673992,1746240648272,-562411.4291733,0.0002,2]
[359673993,1746240648282,-2612505.31423635,0.0002,2]
[359673994,1746240648583,-450.0,0.00019585,2]
[359673995,1746240648593,-1997.69191654,0.0002,2]
[359673996,1746240648604,-2446.92617743,0.0002,2]
[359673997,1746240648616,-837.18606315,0.0002,2]
[359673998,1746240648627,-521.66000005,0.0002,2]
[359673999,1746240649085,-450.0,0.00019585,2]
[359674000,1746240649096,-450.0,0.00019859,2]
[359674001,1746240649105,-197.64,0.00019859,2]
[359674002,1746240649115,-2822.55665004,0.0002,2]
[359674003,1746240649131,-26031.31667003,0.0002,2]
[359674004,1746240649142,-28981.42942138,0.0002,2]
[359674005,1746240649159,-9656.15426801,0.0002,2]
[359674006,1746240649654,-450.0,0.00019585,2]
[359674007,1746240649663,-455.96,0.00019585,2]
[359674008,1746240649673,-151.0,0.00019768,2]
[359674009,1746240649682,-22403.71321827,0.0002,2]
[359674010,1746240650212,-465.05,0.00019585,2]
[359674011,1746240650222,-195.38697776,0.0002,2]
[359674012,1746240650234,-82334.94453801,0.0002,2]
[359674013,1746240650245,-17326.07886909,0.0002,2]
[359674014,1746240650256,-32237.45749661,0.0002,2]
[359674015,1746240650268,-27339.4002085,0.0002,2]
[359674016,1746240650279,-4828.218,0.0002,2]
[359674017,1746240660125,159.64,0.00019299,2]
[359674018,1746240676034,500.0,0.00019485,2]
[359674019,1746240687935,3799.2634,0.00019485,2]
[359674020,1746240695978,177.980465,0.00018463,2]
[359674021,1746240698481,1000.0,0.000192,7]
[359674022,1746240700735,2000.0,0.000193,7]
[359674023,1746240702695,3000.0,0.000194,7]
[359674024,1746240704793,4000.0,0.000195,7]
[359674025,1746240707007,5000.0,0.000196,7]
[359674026,1746240709102,1000.0,0.000197,7]
[359674027,1746240711189,1000.0,0.000198,7]
[359674028,1746240713282,1000.0,0.000199,7]
[359674029,1746240719037,92036.8778,0.00019485,2]
[359674030,1746240740229,955.91,0.00019053,2]
[359674031,1746240821149,293.32,0.00019027,2]
[359674032,1746240835755,2651.2969374,0.00019485,2]
[359674033,1746240877626,2021.23,0.00018912,2]
[359674034,1746240905387,4670.76,0.00018919,2]
[359674035,1746240940213,46791.4418,0.00019485,2]
[359674036,1746240941875,997.31,0.00018882,2]
[359674037,1746240942073,997.31,0.00018887,2]
[359674038,1746240942278,997.31,0.00018892,2]
[359674039,1746240942491,997.31,0.00018897,2]
[359674040,1746240942726,997.31,0.00018902,2]
[359674041,1746240943185,997.31,0.00018907,2]
[359674042,1746240943349,-179.0,0.00019531,2]
[359674043,1746240943400,997.31,0.00018912,2]
[359674044,1746240943605,997.31,0.00018917,2]
[359674045,1746240943841,997.31,0.00018922,2]
[359674046,1746240944065,997.31,0.00018927,2]
[359674047,1746240944265,997.31,0.00018932,2]
[359674048,1746240944505,997.31,0.00018937,2]
[359674049,1746240944720,997.31,0.00018942,2]
[359674050,1746240944965,997.31,0.00018946,2]
[359674051,1746240945372,997.31,0.00018951,2]
[359674052,1746240945652,997.31,0.00018956,2]
[359674053,1746240945866,997.31,0.00018961,2]
[359674054,1746240945997,997.31,0.00018966,2]
[359674055,1746240946202,997.31,0.00018971,2]
[359674056,1746240946422,-300.0,0.00019531,2]
[359674057,1746240946452,997.31,0.00018976,2]
[359674058,1746240949296,-350.6741,0.00019531,2]
[359674059,1746240951719,11909.6081,0.00019485,2]
[359674060,1746240954017,197.44384694,0.00019485,2]
[359674061,1746240957950,-360.88367675,0.00019531,2]
[359674062,1746240967441,-150.81,0.00019531,2]
[359674063,1746240969689,5071.79,0.0003,30]
[359674064,1746240970178,-200.0,0.00019531,2]
[359674065,1746240972867,-160.08,0.00019531,2]
[359674066,1746240975522,-194.13,0.00019531,2]
[359674067,1746240978196,-168.579952,0.00019531,2]
[359674068,1746240984513,-298.82909971,0.00019531,2]
[359674069,1746240985525,3120.90687001,0.00019485,2]
[359674070,1746240988249,-178.11747557,0.00019531,2]
[359674071,1746240995128,-110.1926333,0.00019531,2]
[359674072,1746240995152,-41.8073667,0.00019531,2]
[359674073,1746240999551,-200.0,0.00019531,2]